{"text_format":"3","workbook":"xlsx","n_sheets":3,"sheets":["Orario","Immissione dei dati","Ricerca nome"],"not_rendered":{"defined_names":5},"read":"whole","date_system":"1900"}

{"sheet":"Orario","index":0,"n_rows":23,"n_cols":9,"rows_kept":23,"merged":[[1,1,2,3]]}
[]
[null,"ORARIO GIORNALIERO",{"$nulls":4},"Per la settimana del ","Mostra orario per: "]
[{"$nulls":5},{"$f":"WEEKDAY(SettimanaDel,1)","v":3},"2012-07-03","Maurice"]
[null,null,{"$f":"$F$3=COLUMN(A$1)","v":false},{"$f":"$F$3=COLUMN(B$1)","v":false},true,false,false,false,false]
[null,null,{"$f":"COLUMN(A$1)-MATCH(TRUE,$C$4:$I$4,0)+SettimanaDel+1","v":"2012-07-02"},"2012-07-03","2012-07-04","2012-07-05","2012-07-06","2012-07-07","2012-07-08"]
[null,"ORA","LUNEDÌ","MARTEDÌ","MERCOLEDÌ","GIOVEDÌ","VENERDÌ","SABATO","DOMENICA"]
[null,"06:00:00",{"$f":"IFERROR(INDEX(tblDati[],MATCH(C$5+$B7&MostraNome,tblDati[DATA E ORA]&tblDati[CHI],0),3),\"\")","v":""},{"$f":"IFERROR(INDEX(tblDati[],MATCH(D$5+$B7&MostraNome,tblDati[DATA E ORA]&tblDati[CHI],0),3),\"\")","v":""},{"$f":"IFERROR(INDEX(tblDati[],MATCH(E$5+$B7&MostraNome,tblDati[DATA E ORA]&tblDati[CHI],0),3),\"\")","v":""},{"$f":"IFERROR(INDEX(tblDati[],MATCH(F$5+$B7&MostraNome,tblDati[DATA E ORA]&tblDati[CHI],0),3),\"\")","v":""},{"$f":"IFERROR(INDEX(tblDati[],MATCH(G$5+$B7&MostraNome,tblDati[DATA E ORA]&tblDati[CHI],0),3),\"\")","v":""},{"$f":"IFERROR(INDEX(tblDati[],MATCH(H$5+$B7&MostraNome,tblDati[DATA E ORA]&tblDati[CHI],0),3),\"\")","v":""},{"$f":"IFERROR(INDEX(tblDati[],MATCH(I$5+$B7&MostraNome,tblDati[DATA E ORA]&tblDati[CHI],0),3),\"\")","v":""}]
[null,"07:00:00",{"$f":"IFERROR(INDEX(tblDati[],MATCH(C$5+$B8&MostraNome,tblDati[DATA E ORA]&tblDati[CHI],0),3),\"\")","v":""},{"$f":"IFERROR(INDEX(tblDati[],MATCH(D$5+$B8&MostraNome,tblDati[DATA E ORA]&tblDati[CHI],0),3),\"\")","v":""},{"$f":"IFERROR(INDEX(tblDati[],MATCH(E$5+$B8&MostraNome,tblDati[DATA E ORA]&tblDati[CHI],0),3),\"\")","v":""},{"$f":"IFERROR(INDEX(tblDati[],MATCH(F$5+$B8&MostraNome,tblDati[DATA E ORA]&tblDati[CHI],0),3),\"\")","v":""},{"$f":"IFERROR(INDEX(tblDati[],MATCH(G$5+$B8&MostraNome,tblDati[DATA E ORA]&tblDati[CHI],0),3),\"\")","v":""},{"$f":"IFERROR(INDEX(tblDati[],MATCH(H$5+$B8&MostraNome,tblDati[DATA E ORA]&tblDati[CHI],0),3),\"\")","v":""},{"$f":"IFERROR(INDEX(tblDati[],MATCH(I$5+$B8&MostraNome,tblDati[DATA E ORA]&tblDati[CHI],0),3),\"\")","v":""}]
[null,"08:00:00",{"$f":"IFERROR(INDEX(tblDati[],MATCH(C$5+$B9&MostraNome,tblDati[DATA E ORA]&tblDati[CHI],0),3),\"\")","v":""},{"$f":"IFERROR(INDEX(tblDati[],MATCH(D$5+$B9&MostraNome,tblDati[DATA E ORA]&tblDati[CHI],0),3),\"\")","v":""},{"$f":"IFERROR(INDEX(tblDati[],MATCH(E$5+$B9&MostraNome,tblDati[DATA E ORA]&tblDati[CHI],0),3),\"\")","v":""},{"$f":"IFERROR(INDEX(tblDati[],MATCH(F$5+$B9&MostraNome,tblDati[DATA E ORA]&tblDati[CHI],0),3),\"\")","v":""},{"$f":"IFERROR(INDEX(tblDati[],MATCH(G$5+$B9&MostraNome,tblDati[DATA E ORA]&tblDati[CHI],0),3),\"\")","v":""},{"$f":"IFERROR(INDEX(tblDati[],MATCH(H$5+$B9&MostraNome,tblDati[DATA E ORA]&tblDati[CHI],0),3),\"\")","v":""},{"$f":"IFERROR(INDEX(tblDati[],MATCH(I$5+$B9&MostraNome,tblDati[DATA E ORA]&tblDati[CHI],0),3),\"\")","v":""}]
[null,"09:00:00",{"$f":"IFERROR(INDEX(tblDati[],MATCH(C$5+$B10&MostraNome,tblDati[DATA E ORA]&tblDati[CHI],0),3),\"\")","v":""},{"$f":"IFERROR(INDEX(tblDati[],MATCH(D$5+$B10&MostraNome,tblDati[DATA E ORA]&tblDati[CHI],0),3),\"\")","v":""},{"$f":"IFERROR(INDEX(tblDati[],MATCH(E$5+$B10&MostraNome,tblDati[DATA E ORA]&tblDati[CHI],0),3),\"\")","v":""},{"$f":"IFERROR(INDEX(tblDati[],MATCH(F$5+$B10&MostraNome,tblDati[DATA E ORA]&tblDati[CHI],0),3),\"\")","v":""},{"$f":"IFERROR(INDEX(tblDati[],MATCH(G$5+$B10&MostraNome,tblDati[DATA E ORA]&tblDati[CHI],0),3),\"\")","v":""},{"$f":"IFERROR(INDEX(tblDati[],MATCH(H$5+$B10&MostraNome,tblDati[DATA E ORA]&tblDati[CHI],0),3),\"\")","v":""},{"$f":"IFERROR(INDEX(tblDati[],MATCH(I$5+$B10&MostraNome,tblDati[DATA E ORA]&tblDati[CHI],0),3),\"\")","v":""}]
[null,"10:00:00",{"$f":"IFERROR(INDEX(tblDati[],MATCH(C$5+$B11&MostraNome,tblDati[DATA E ORA]&tblDati[CHI],0),3),\"\")","v":""},{"$f":"IFERROR(INDEX(tblDati[],MATCH(D$5+$B11&MostraNome,tblDati[DATA E ORA]&tblDati[CHI],0),3),\"\")","v":""},{"$f":"IFERROR(INDEX(tblDati[],MATCH(E$5+$B11&MostraNome,tblDati[DATA E ORA]&tblDati[CHI],0),3),\"\")","v":"Sfilata in città"},{"$f":"IFERROR(INDEX(tblDati[],MATCH(F$5+$B11&MostraNome,tblDati[DATA E ORA]&tblDati[CHI],0),3),\"\")","v":""},{"$f":"IFERROR(INDEX(tblDati[],MATCH(G$5+$B11&MostraNome,tblDati[DATA E ORA]&tblDati[CHI],0),3),\"\")","v":""},{"$f":"IFERROR(INDEX(tblDati[],MATCH(H$5+$B11&MostraNome,tblDati[DATA E ORA]&tblDati[CHI],0),3),\"\")","v":""},{"$f":"IFERROR(INDEX(tblDati[],MATCH(I$5+$B11&MostraNome,tblDati[DATA E ORA]&tblDati[CHI],0),3),\"\")","v":""}]
[null,"11:00:00",{"$f":"IFERROR(INDEX(tblDati[],MATCH(C$5+$B12&MostraNome,tblDati[DATA E ORA]&tblDati[CHI],0),3),\"\")","v":""},{"$f":"IFERROR(INDEX(tblDati[],MATCH(D$5+$B12&MostraNome,tblDati[DATA E ORA]&tblDati[CHI],0),3),\"\")","v":""},{"$f":"IFERROR(INDEX(tblDati[],MATCH(E$5+$B12&MostraNome,tblDati[DATA E ORA]&tblDati[CHI],0),3),\"\")","v":""},{"$f":"IFERROR(INDEX(tblDati[],MATCH(F$5+$B12&MostraNome,tblDati[DATA E ORA]&tblDati[CHI],0),3),\"\")","v":""},{"$f":"IFERROR(INDEX(tblDati[],MATCH(G$5+$B12&MostraNome,tblDati[DATA E ORA]&tblDati[CHI],0),3),\"\")","v":"Barbeque di famiglia"},{"$f":"IFERROR(INDEX(tblDati[],MATCH(H$5+$B12&MostraNome,tblDati[DATA E ORA]&tblDati[CHI],0),3),\"\")","v":""},{"$f":"IFERROR(INDEX(tblDati[],MATCH(I$5+$B12&MostraNome,tblDati[DATA E ORA]&tblDati[CHI],0),3),\"\")","v":""}]
[null,"12:00:00",{"$f":"IFERROR(INDEX(tblDati[],MATCH(C$5+$B13&MostraNome,tblDati[DATA E ORA]&tblDati[CHI],0),3),\"\")","v":""},{"$f":"IFERROR(INDEX(tblDati[],MATCH(D$5+$B13&MostraNome,tblDati[DATA E ORA]&tblDati[CHI],0),3),\"\")","v":""},{"$f":"IFERROR(INDEX(tblDati[],MATCH(E$5+$B13&MostraNome,tblDati[DATA E ORA]&tblDati[CHI],0),3),\"\")","v":""},{"$f":"IFERROR(INDEX(tblDati[],MATCH(F$5+$B13&MostraNome,tblDati[DATA E ORA]&tblDati[CHI],0),3),\"\")","v":""},{"$f":"IFERROR(INDEX(tblDati[],MATCH(G$5+$B13&MostraNome,tblDati[DATA E ORA]&tblDati[CHI],0),3),\"\")","v":""},{"$f":"IFERROR(INDEX(tblDati[],MATCH(H$5+$B13&MostraNome,tblDati[DATA E ORA]&tblDati[CHI],0),3),\"\")","v":""},{"$f":"IFERROR(INDEX(tblDati[],MATCH(I$5+$B13&MostraNome,tblDati[DATA E ORA]&tblDati[CHI],0),3),\"\")","v":""}]
[null,"13:00:00",{"$f":"IFERROR(INDEX(tblDati[],MATCH(C$5+$B14&MostraNome,tblDati[DATA E ORA]&tblDati[CHI],0),3),\"\")","v":""},{"$f":"IFERROR(INDEX(tblDati[],MATCH(D$5+$B14&MostraNome,tblDati[DATA E ORA]&tblDati[CHI],0),3),\"\")","v":""},{"$f":"IFERROR(INDEX(tblDati[],MATCH(E$5+$B14&MostraNome,tblDati[DATA E ORA]&tblDati[CHI],0),3),\"\")","v":""},{"$f":"IFERROR(INDEX(tblDati[],MATCH(F$5+$B14&MostraNome,tblDati[DATA E ORA]&tblDati[CHI],0),3),\"\")","v":""},{"$f":"IFERROR(INDEX(tblDati[],MATCH(G$5+$B14&MostraNome,tblDati[DATA E ORA]&tblDati[CHI],0),3),\"\")","v":""},{"$f":"IFERROR(INDEX(tblDati[],MATCH(H$5+$B14&MostraNome,tblDati[DATA E ORA]&tblDati[CHI],0),3),\"\")","v":""},{"$f":"IFERROR(INDEX(tblDati[],MATCH(I$5+$B14&MostraNome,tblDati[DATA E ORA]&tblDati[CHI],0),3),\"\")","v":""}]
[null,"14:00:00",{"$f":"IFERROR(INDEX(tblDati[],MATCH(C$5+$B15&MostraNome,tblDati[DATA E ORA]&tblDati[CHI],0),3),\"\")","v":""},{"$f":"IFERROR(INDEX(tblDati[],MATCH(D$5+$B15&MostraNome,tblDati[DATA E ORA]&tblDati[CHI],0),3),\"\")","v":""},{"$f":"IFERROR(INDEX(tblDati[],MATCH(E$5+$B15&MostraNome,tblDati[DATA E ORA]&tblDati[CHI],0),3),\"\")","v":""},{"$f":"IFERROR(INDEX(tblDati[],MATCH(F$5+$B15&MostraNome,tblDati[DATA E ORA]&tblDati[CHI],0),3),\"\")","v":""},{"$f":"IFERROR(INDEX(tblDati[],MATCH(G$5+$B15&MostraNome,tblDati[DATA E ORA]&tblDati[CHI],0),3),\"\")","v":""},{"$f":"IFERROR(INDEX(tblDati[],MATCH(H$5+$B15&MostraNome,tblDati[DATA E ORA]&tblDati[CHI],0),3),\"\")","v":""},{"$f":"IFERROR(INDEX(tblDati[],MATCH(I$5+$B15&MostraNome,tblDati[DATA E ORA]&tblDati[CHI],0),3),\"\")","v":""}]
[null,"15:00:00",{"$f":"IFERROR(INDEX(tblDati[],MATCH(C$5+$B16&MostraNome,tblDati[DATA E ORA]&tblDati[CHI],0),3),\"\")","v":""},{"$f":"IFERROR(INDEX(tblDati[],MATCH(D$5+$B16&MostraNome,tblDati[DATA E ORA]&tblDati[CHI],0),3),\"\")","v":""},{"$f":"IFERROR(INDEX(tblDati[],MATCH(E$5+$B16&MostraNome,tblDati[DATA E ORA]&tblDati[CHI],0),3),\"\")","v":""},{"$f":"IFERROR(INDEX(tblDati[],MATCH(F$5+$B16&MostraNome,tblDati[DATA E ORA]&tblDati[CHI],0),3),\"\")","v":""},{"$f":"IFERROR(INDEX(tblDati[],MATCH(G$5+$B16&MostraNome,tblDati[DATA E ORA]&tblDati[CHI],0),3),\"\")","v":""},{"$f":"IFERROR(INDEX(tblDati[],MATCH(H$5+$B16&MostraNome,tblDati[DATA E ORA]&tblDati[CHI],0),3),\"\")","v":""},{"$f":"IFERROR(INDEX(tblDati[],MATCH(I$5+$B16&MostraNome,tblDati[DATA E ORA]&tblDati[CHI],0),3),\"\")","v":""}]
[null,"16:00:00",{"$f":"IFERROR(INDEX(tblDati[],MATCH(C$5+$B17&MostraNome,tblDati[DATA E ORA]&tblDati[CHI],0),3),\"\")","v":""},{"$f":"IFERROR(INDEX(tblDati[],MATCH(D$5+$B17&MostraNome,tblDati[DATA E ORA]&tblDati[CHI],0),3),\"\")","v":"Partire per il bungalow"},{"$f":"IFERROR(INDEX(tblDati[],MATCH(E$5+$B17&MostraNome,tblDati[DATA E ORA]&tblDati[CHI],0),3),\"\")","v":""},{"$f":"IFERROR(INDEX(tblDati[],MATCH(F$5+$B17&MostraNome,tblDati[DATA E ORA]&tblDati[CHI],0),3),\"\")","v":""},{"$f":"IFERROR(INDEX(tblDati[],MATCH(G$5+$B17&MostraNome,tblDati[DATA E ORA]&tblDati[CHI],0),3),\"\")","v":""},{"$f":"IFERROR(INDEX(tblDati[],MATCH(H$5+$B17&MostraNome,tblDati[DATA E ORA]&tblDati[CHI],0),3),\"\")","v":""},{"$f":"IFERROR(INDEX(tblDati[],MATCH(I$5+$B17&MostraNome,tblDati[DATA E ORA]&tblDati[CHI],0),3),\"\")","v":""}]
[null,"17:00:00",{"$f":"IFERROR(INDEX(tblDati[],MATCH(C$5+$B18&MostraNome,tblDati[DATA E ORA]&tblDati[CHI],0),3),\"\")","v":""},{"$f":"IFERROR(INDEX(tblDati[],MATCH(D$5+$B18&MostraNome,tblDati[DATA E ORA]&tblDati[CHI],0),3),\"\")","v":""},{"$f":"IFERROR(INDEX(tblDati[],MATCH(E$5+$B18&MostraNome,tblDati[DATA E ORA]&tblDati[CHI],0),3),\"\")","v":""},{"$f":"IFERROR(INDEX(tblDati[],MATCH(F$5+$B18&MostraNome,tblDati[DATA E ORA]&tblDati[CHI],0),3),\"\")","v":""},{"$f":"IFERROR(INDEX(tblDati[],MATCH(G$5+$B18&MostraNome,tblDati[DATA E ORA]&tblDati[CHI],0),3),\"\")","v":""},{"$f":"IFERROR(INDEX(tblDati[],MATCH(H$5+$B18&MostraNome,tblDati[DATA E ORA]&tblDati[CHI],0),3),\"\")","v":""},{"$f":"IFERROR(INDEX(tblDati[],MATCH(I$5+$B18&MostraNome,tblDati[DATA E ORA]&tblDati[CHI],0),3),\"\")","v":"Torna all'inizio"}]
[null,"18:00:00",{"$f":"IFERROR(INDEX(tblDati[],MATCH(C$5+$B19&MostraNome,tblDati[DATA E ORA]&tblDati[CHI],0),3),\"\")","v":"Prendere medicina"},{"$f":"IFERROR(INDEX(tblDati[],MATCH(D$5+$B19&MostraNome,tblDati[DATA E ORA]&tblDati[CHI],0),3),\"\")","v":""},{"$f":"IFERROR(INDEX(tblDati[],MATCH(E$5+$B19&MostraNome,tblDati[DATA E ORA]&tblDati[CHI],0),3),\"\")","v":""},{"$f":"IFERROR(INDEX(tblDati[],MATCH(F$5+$B19&MostraNome,tblDati[DATA E ORA]&tblDati[CHI],0),3),\"\")","v":""},{"$f":"IFERROR(INDEX(tblDati[],MATCH(G$5+$B19&MostraNome,tblDati[DATA E ORA]&tblDati[CHI],0),3),\"\")","v":""},{"$f":"IFERROR(INDEX(tblDati[],MATCH(H$5+$B19&MostraNome,tblDati[DATA E ORA]&tblDati[CHI],0),3),\"\")","v":""},{"$f":"IFERROR(INDEX(tblDati[],MATCH(I$5+$B19&MostraNome,tblDati[DATA E ORA]&tblDati[CHI],0),3),\"\")","v":""}]
[null,"19:00:00",{"$f":"IFERROR(INDEX(tblDati[],MATCH(C$5+$B20&MostraNome,tblDati[DATA E ORA]&tblDati[CHI],0),3),\"\")","v":""},{"$f":"IFERROR(INDEX(tblDati[],MATCH(D$5+$B20&MostraNome,tblDati[DATA E ORA]&tblDati[CHI],0),3),\"\")","v":""},{"$f":"IFERROR(INDEX(tblDati[],MATCH(E$5+$B20&MostraNome,tblDati[DATA E ORA]&tblDati[CHI],0),3),\"\")","v":""},{"$f":"IFERROR(INDEX(tblDati[],MATCH(F$5+$B20&MostraNome,tblDati[DATA E ORA]&tblDati[CHI],0),3),\"\")","v":""},{"$f":"IFERROR(INDEX(tblDati[],MATCH(G$5+$B20&MostraNome,tblDati[DATA E ORA]&tblDati[CHI],0),3),\"\")","v":""},{"$f":"IFERROR(INDEX(tblDati[],MATCH(H$5+$B20&MostraNome,tblDati[DATA E ORA]&tblDati[CHI],0),3),\"\")","v":""},{"$f":"IFERROR(INDEX(tblDati[],MATCH(I$5+$B20&MostraNome,tblDati[DATA E ORA]&tblDati[CHI],0),3),\"\")","v":""}]
[null,"20:00:00",{"$f":"IFERROR(INDEX(tblDati[],MATCH(C$5+$B21&MostraNome,tblDati[DATA E ORA]&tblDati[CHI],0),3),\"\")","v":"Film in famiglia"},{"$f":"IFERROR(INDEX(tblDati[],MATCH(D$5+$B21&MostraNome,tblDati[DATA E ORA]&tblDati[CHI],0),3),\"\")","v":""},{"$f":"IFERROR(INDEX(tblDati[],MATCH(E$5+$B21&MostraNome,tblDati[DATA E ORA]&tblDati[CHI],0),3),\"\")","v":""},{"$f":"IFERROR(INDEX(tblDati[],MATCH(F$5+$B21&MostraNome,tblDati[DATA E ORA]&tblDati[CHI],0),3),\"\")","v":"Spettacolo dei fuochi d'artificio"},{"$f":"IFERROR(INDEX(tblDati[],MATCH(G$5+$B21&MostraNome,tblDati[DATA E ORA]&tblDati[CHI],0),3),\"\")","v":""},{"$f":"IFERROR(INDEX(tblDati[],MATCH(H$5+$B21&MostraNome,tblDati[DATA E ORA]&tblDati[CHI],0),3),\"\")","v":""},{"$f":"IFERROR(INDEX(tblDati[],MATCH(I$5+$B21&MostraNome,tblDati[DATA E ORA]&tblDati[CHI],0),3),\"\")","v":""}]
[null,"21:00:00",{"$f":"IFERROR(INDEX(tblDati[],MATCH(C$5+$B22&MostraNome,tblDati[DATA E ORA]&tblDati[CHI],0),3),\"\")","v":""},{"$f":"IFERROR(INDEX(tblDati[],MATCH(D$5+$B22&MostraNome,tblDati[DATA E ORA]&tblDati[CHI],0),3),\"\")","v":""},{"$f":"IFERROR(INDEX(tblDati[],MATCH(E$5+$B22&MostraNome,tblDati[DATA E ORA]&tblDati[CHI],0),3),\"\")","v":""},{"$f":"IFERROR(INDEX(tblDati[],MATCH(F$5+$B22&MostraNome,tblDati[DATA E ORA]&tblDati[CHI],0),3),\"\")","v":""},{"$f":"IFERROR(INDEX(tblDati[],MATCH(G$5+$B22&MostraNome,tblDati[DATA E ORA]&tblDati[CHI],0),3),\"\")","v":""},{"$f":"IFERROR(INDEX(tblDati[],MATCH(H$5+$B22&MostraNome,tblDati[DATA E ORA]&tblDati[CHI],0),3),\"\")","v":""},{"$f":"IFERROR(INDEX(tblDati[],MATCH(I$5+$B22&MostraNome,tblDati[DATA E ORA]&tblDati[CHI],0),3),\"\")","v":""}]
[null,"22:00:00",{"$f":"IFERROR(INDEX(tblDati[],MATCH(C$5+$B23&MostraNome,tblDati[DATA E ORA]&tblDati[CHI],0),3),\"\")","v":""},{"$f":"IFERROR(INDEX(tblDati[],MATCH(D$5+$B23&MostraNome,tblDati[DATA E ORA]&tblDati[CHI],0),3),\"\")","v":""},{"$f":"IFERROR(INDEX(tblDati[],MATCH(E$5+$B23&MostraNome,tblDati[DATA E ORA]&tblDati[CHI],0),3),\"\")","v":""},{"$f":"IFERROR(INDEX(tblDati[],MATCH(F$5+$B23&MostraNome,tblDati[DATA E ORA]&tblDati[CHI],0),3),\"\")","v":""},{"$f":"IFERROR(INDEX(tblDati[],MATCH(G$5+$B23&MostraNome,tblDati[DATA E ORA]&tblDati[CHI],0),3),\"\")","v":""},{"$f":"IFERROR(INDEX(tblDati[],MATCH(H$5+$B23&MostraNome,tblDati[DATA E ORA]&tblDati[CHI],0),3),\"\")","v":""},{"$f":"IFERROR(INDEX(tblDati[],MATCH(I$5+$B23&MostraNome,tblDati[DATA E ORA]&tblDati[CHI],0),3),\"\")","v":""}]

{"sheet":"Immissione dei dati","index":1,"n_rows":14,"n_cols":4,"rows_kept":14}
[null,"IMMISSIONE DATI"]
[]
[null,"DATA E ORA","CHI","ATTIVITÀ"]
[null,"2012-07-02T08:00:00","Anna","Appuntamento dal dottore"]
[null,"2012-07-02T18:00:00","Maurice","Prendere medicina"]
[null,"2012-07-02T18:30:00","Maurice","Cena con Pat"]
[null,"2012-07-02T20:00:00","Maurice","Film in famiglia"]
[null,"2012-07-03T16:00:00","Maurice","Partire per il bungalow"]
[null,"2012-07-04T10:00:00","Maurice","Sfilata in città"]
[null,"2012-07-05T20:00:00","Maurice","Spettacolo dei fuochi d'artificio"]
[null,"2012-07-06T11:00:00","Maurice","Barbeque di famiglia"]
[null,"2012-07-07","Maurice","Picnic con la comunità"]
[null,"2012-07-08T17:00:00","Maurice","Torna all'inizio"]
[null,"2012-07-02T10:00:00","Anna","Lezioni di piano"]

{"sheet":"Ricerca nome","index":2,"n_rows":132,"n_cols":2,"rows_kept":132,"hidden":true,"merged":[[0,0,0,1]]}
["I dati di questo foglio popolano l'elenco a discesa dei nomi nel foglio dell'Orario della cella H3.  Le modifiche apportate a questo foglio potrebbero generare errori."]
["NOME UNIVOCO","NUMERO RIGA"]
[{"$f":"IFERROR(INDEX(CampoChi,MATCH(0,COUNTIF($A$2:A2,CampoChi),0)),\"\")","v":"Anna"},{"$f":"IF(A3=\"\",\"\",ROW())","v":3}]
[{"$f":"IFERROR(INDEX(CampoChi,MATCH(0,COUNTIF($A$2:A3,CampoChi),0)),\"\")","v":"Maurice"},{"$f":"IF(A4=\"\",\"\",ROW())","v":4}]
[{"$f":"IFERROR(INDEX(CampoChi,MATCH(0,COUNTIF($A$2:A4,CampoChi),0)),\"\")","v":""},""]
[{"$f":"IFERROR(INDEX(CampoChi,MATCH(0,COUNTIF($A$2:A5,CampoChi),0)),\"\")","v":""},""]
[{"$f":"IFERROR(INDEX(CampoChi,MATCH(0,COUNTIF($A$2:A6,CampoChi),0)),\"\")","v":""},""]
[{"$f":"IFERROR(INDEX(CampoChi,MATCH(0,COUNTIF($A$2:A7,CampoChi),0)),\"\")","v":""},""]
[{"$f":"IFERROR(INDEX(CampoChi,MATCH(0,COUNTIF($A$2:A8,CampoChi),0)),\"\")","v":""},""]
[{"$f":"IFERROR(INDEX(CampoChi,MATCH(0,COUNTIF($A$2:A9,CampoChi),0)),\"\")","v":""},""]
[{"$f":"IFERROR(INDEX(CampoChi,MATCH(0,COUNTIF($A$2:A10,CampoChi),0)),\"\")","v":""},""]
[{"$f":"IFERROR(INDEX(CampoChi,MATCH(0,COUNTIF($A$2:A11,CampoChi),0)),\"\")","v":""},""]
[{"$f":"IFERROR(INDEX(CampoChi,MATCH(0,COUNTIF($A$2:A12,CampoChi),0)),\"\")","v":""},""]
[{"$f":"IFERROR(INDEX(CampoChi,MATCH(0,COUNTIF($A$2:A13,CampoChi),0)),\"\")","v":""},""]
[{"$f":"IFERROR(INDEX(CampoChi,MATCH(0,COUNTIF($A$2:A14,CampoChi),0)),\"\")","v":""},""]
[{"$f":"IFERROR(INDEX(CampoChi,MATCH(0,COUNTIF($A$2:A15,CampoChi),0)),\"\")","v":""},""]
[{"$f":"IFERROR(INDEX(CampoChi,MATCH(0,COUNTIF($A$2:A16,CampoChi),0)),\"\")","v":""},""]
[{"$f":"IFERROR(INDEX(CampoChi,MATCH(0,COUNTIF($A$2:A17,CampoChi),0)),\"\")","v":""},""]
[{"$f":"IFERROR(INDEX(CampoChi,MATCH(0,COUNTIF($A$2:A18,CampoChi),0)),\"\")","v":""},""]
[{"$f":"IFERROR(INDEX(CampoChi,MATCH(0,COUNTIF($A$2:A19,CampoChi),0)),\"\")","v":""},""]
[{"$f":"IFERROR(INDEX(CampoChi,MATCH(0,COUNTIF($A$2:A20,CampoChi),0)),\"\")","v":""},""]
[{"$f":"IFERROR(INDEX(CampoChi,MATCH(0,COUNTIF($A$2:A21,CampoChi),0)),\"\")","v":""},""]
[{"$f":"IFERROR(INDEX(CampoChi,MATCH(0,COUNTIF($A$2:A22,CampoChi),0)),\"\")","v":""},""]
[{"$f":"IFERROR(INDEX(CampoChi,MATCH(0,COUNTIF($A$2:A23,CampoChi),0)),\"\")","v":""},""]
[{"$f":"IFERROR(INDEX(CampoChi,MATCH(0,COUNTIF($A$2:A24,CampoChi),0)),\"\")","v":""},""]
[{"$f":"IFERROR(INDEX(CampoChi,MATCH(0,COUNTIF($A$2:A25,CampoChi),0)),\"\")","v":""},""]
[{"$f":"IFERROR(INDEX(CampoChi,MATCH(0,COUNTIF($A$2:A26,CampoChi),0)),\"\")","v":""},""]
[{"$f":"IFERROR(INDEX(CampoChi,MATCH(0,COUNTIF($A$2:A27,CampoChi),0)),\"\")","v":""},""]
[{"$f":"IFERROR(INDEX(CampoChi,MATCH(0,COUNTIF($A$2:A28,CampoChi),0)),\"\")","v":""},""]
[{"$f":"IFERROR(INDEX(CampoChi,MATCH(0,COUNTIF($A$2:A29,CampoChi),0)),\"\")","v":""},""]
[{"$f":"IFERROR(INDEX(CampoChi,MATCH(0,COUNTIF($A$2:A30,CampoChi),0)),\"\")","v":""},""]
[{"$f":"IFERROR(INDEX(CampoChi,MATCH(0,COUNTIF($A$2:A31,CampoChi),0)),\"\")","v":""},""]
[{"$f":"IFERROR(INDEX(CampoChi,MATCH(0,COUNTIF($A$2:A32,CampoChi),0)),\"\")","v":""},""]
[{"$f":"IFERROR(INDEX(CampoChi,MATCH(0,COUNTIF($A$2:A33,CampoChi),0)),\"\")","v":""},""]
[{"$f":"IFERROR(INDEX(CampoChi,MATCH(0,COUNTIF($A$2:A34,CampoChi),0)),\"\")","v":""},""]
[{"$f":"IFERROR(INDEX(CampoChi,MATCH(0,COUNTIF($A$2:A35,CampoChi),0)),\"\")","v":""},""]
[{"$f":"IFERROR(INDEX(CampoChi,MATCH(0,COUNTIF($A$2:A36,CampoChi),0)),\"\")","v":""},""]
[{"$f":"IFERROR(INDEX(CampoChi,MATCH(0,COUNTIF($A$2:A37,CampoChi),0)),\"\")","v":""},""]
[{"$f":"IFERROR(INDEX(CampoChi,MATCH(0,COUNTIF($A$2:A38,CampoChi),0)),\"\")","v":""},""]
[{"$f":"IFERROR(INDEX(CampoChi,MATCH(0,COUNTIF($A$2:A39,CampoChi),0)),\"\")","v":""},""]
[{"$f":"IFERROR(INDEX(CampoChi,MATCH(0,COUNTIF($A$2:A40,CampoChi),0)),\"\")","v":""},""]
[{"$f":"IFERROR(INDEX(CampoChi,MATCH(0,COUNTIF($A$2:A41,CampoChi),0)),\"\")","v":""},""]
[{"$f":"IFERROR(INDEX(CampoChi,MATCH(0,COUNTIF($A$2:A42,CampoChi),0)),\"\")","v":""},""]
[{"$f":"IFERROR(INDEX(CampoChi,MATCH(0,COUNTIF($A$2:A43,CampoChi),0)),\"\")","v":""},""]
[{"$f":"IFERROR(INDEX(CampoChi,MATCH(0,COUNTIF($A$2:A44,CampoChi),0)),\"\")","v":""},""]
[{"$f":"IFERROR(INDEX(CampoChi,MATCH(0,COUNTIF($A$2:A45,CampoChi),0)),\"\")","v":""},""]
[{"$f":"IFERROR(INDEX(CampoChi,MATCH(0,COUNTIF($A$2:A46,CampoChi),0)),\"\")","v":""},""]
[{"$f":"IFERROR(INDEX(CampoChi,MATCH(0,COUNTIF($A$2:A47,CampoChi),0)),\"\")","v":""},""]
[{"$f":"IFERROR(INDEX(CampoChi,MATCH(0,COUNTIF($A$2:A48,CampoChi),0)),\"\")","v":""},""]
[{"$f":"IFERROR(INDEX(CampoChi,MATCH(0,COUNTIF($A$2:A49,CampoChi),0)),\"\")","v":""},""]
[{"$f":"IFERROR(INDEX(CampoChi,MATCH(0,COUNTIF($A$2:A50,CampoChi),0)),\"\")","v":""},""]
[{"$f":"IFERROR(INDEX(CampoChi,MATCH(0,COUNTIF($A$2:A51,CampoChi),0)),\"\")","v":""},""]
[{"$f":"IFERROR(INDEX(CampoChi,MATCH(0,COUNTIF($A$2:A52,CampoChi),0)),\"\")","v":""},""]
[{"$f":"IFERROR(INDEX(CampoChi,MATCH(0,COUNTIF($A$2:A53,CampoChi),0)),\"\")","v":""},""]
[{"$f":"IFERROR(INDEX(CampoChi,MATCH(0,COUNTIF($A$2:A54,CampoChi),0)),\"\")","v":""},""]
[{"$f":"IFERROR(INDEX(CampoChi,MATCH(0,COUNTIF($A$2:A55,CampoChi),0)),\"\")","v":""},""]
[{"$f":"IFERROR(INDEX(CampoChi,MATCH(0,COUNTIF($A$2:A56,CampoChi),0)),\"\")","v":""},""]
[{"$f":"IFERROR(INDEX(CampoChi,MATCH(0,COUNTIF($A$2:A57,CampoChi),0)),\"\")","v":""},""]
[{"$f":"IFERROR(INDEX(CampoChi,MATCH(0,COUNTIF($A$2:A58,CampoChi),0)),\"\")","v":""},""]
[{"$f":"IFERROR(INDEX(CampoChi,MATCH(0,COUNTIF($A$2:A59,CampoChi),0)),\"\")","v":""},""]
[{"$f":"IFERROR(INDEX(CampoChi,MATCH(0,COUNTIF($A$2:A60,CampoChi),0)),\"\")","v":""},""]
[{"$f":"IFERROR(INDEX(CampoChi,MATCH(0,COUNTIF($A$2:A61,CampoChi),0)),\"\")","v":""},""]
[{"$f":"IFERROR(INDEX(CampoChi,MATCH(0,COUNTIF($A$2:A62,CampoChi),0)),\"\")","v":""},""]
[{"$f":"IFERROR(INDEX(CampoChi,MATCH(0,COUNTIF($A$2:A63,CampoChi),0)),\"\")","v":""},""]
[{"$f":"IFERROR(INDEX(CampoChi,MATCH(0,COUNTIF($A$2:A64,CampoChi),0)),\"\")","v":""},""]
[{"$f":"IFERROR(INDEX(CampoChi,MATCH(0,COUNTIF($A$2:A65,CampoChi),0)),\"\")","v":""},""]
[{"$f":"IFERROR(INDEX(CampoChi,MATCH(0,COUNTIF($A$2:A66,CampoChi),0)),\"\")","v":""},""]
[{"$f":"IFERROR(INDEX(CampoChi,MATCH(0,COUNTIF($A$2:A67,CampoChi),0)),\"\")","v":""},{"$f":"IF(A68=\"\",\"\",ROW())","v":""}]
[{"$f":"IFERROR(INDEX(CampoChi,MATCH(0,COUNTIF($A$2:A68,CampoChi),0)),\"\")","v":""},""]
[{"$f":"IFERROR(INDEX(CampoChi,MATCH(0,COUNTIF($A$2:A69,CampoChi),0)),\"\")","v":""},""]
[{"$f":"IFERROR(INDEX(CampoChi,MATCH(0,COUNTIF($A$2:A70,CampoChi),0)),\"\")","v":""},""]
[{"$f":"IFERROR(INDEX(CampoChi,MATCH(0,COUNTIF($A$2:A71,CampoChi),0)),\"\")","v":""},""]
[{"$f":"IFERROR(INDEX(CampoChi,MATCH(0,COUNTIF($A$2:A72,CampoChi),0)),\"\")","v":""},""]
[{"$f":"IFERROR(INDEX(CampoChi,MATCH(0,COUNTIF($A$2:A73,CampoChi),0)),\"\")","v":""},""]
[{"$f":"IFERROR(INDEX(CampoChi,MATCH(0,COUNTIF($A$2:A74,CampoChi),0)),\"\")","v":""},""]
[{"$f":"IFERROR(INDEX(CampoChi,MATCH(0,COUNTIF($A$2:A75,CampoChi),0)),\"\")","v":""},""]
[{"$f":"IFERROR(INDEX(CampoChi,MATCH(0,COUNTIF($A$2:A76,CampoChi),0)),\"\")","v":""},""]
[{"$f":"IFERROR(INDEX(CampoChi,MATCH(0,COUNTIF($A$2:A77,CampoChi),0)),\"\")","v":""},""]
[{"$f":"IFERROR(INDEX(CampoChi,MATCH(0,COUNTIF($A$2:A78,CampoChi),0)),\"\")","v":""},""]
[{"$f":"IFERROR(INDEX(CampoChi,MATCH(0,COUNTIF($A$2:A79,CampoChi),0)),\"\")","v":""},""]
[{"$f":"IFERROR(INDEX(CampoChi,MATCH(0,COUNTIF($A$2:A80,CampoChi),0)),\"\")","v":""},""]
[{"$f":"IFERROR(INDEX(CampoChi,MATCH(0,COUNTIF($A$2:A81,CampoChi),0)),\"\")","v":""},""]
[{"$f":"IFERROR(INDEX(CampoChi,MATCH(0,COUNTIF($A$2:A82,CampoChi),0)),\"\")","v":""},""]
[{"$f":"IFERROR(INDEX(CampoChi,MATCH(0,COUNTIF($A$2:A83,CampoChi),0)),\"\")","v":""},""]
[{"$f":"IFERROR(INDEX(CampoChi,MATCH(0,COUNTIF($A$2:A84,CampoChi),0)),\"\")","v":""},""]
[{"$f":"IFERROR(INDEX(CampoChi,MATCH(0,COUNTIF($A$2:A85,CampoChi),0)),\"\")","v":""},""]
[{"$f":"IFERROR(INDEX(CampoChi,MATCH(0,COUNTIF($A$2:A86,CampoChi),0)),\"\")","v":""},""]
[{"$f":"IFERROR(INDEX(CampoChi,MATCH(0,COUNTIF($A$2:A87,CampoChi),0)),\"\")","v":""},""]
[{"$f":"IFERROR(INDEX(CampoChi,MATCH(0,COUNTIF($A$2:A88,CampoChi),0)),\"\")","v":""},""]
[{"$f":"IFERROR(INDEX(CampoChi,MATCH(0,COUNTIF($A$2:A89,CampoChi),0)),\"\")","v":""},""]
[{"$f":"IFERROR(INDEX(CampoChi,MATCH(0,COUNTIF($A$2:A90,CampoChi),0)),\"\")","v":""},""]
[{"$f":"IFERROR(INDEX(CampoChi,MATCH(0,COUNTIF($A$2:A91,CampoChi),0)),\"\")","v":""},""]
[{"$f":"IFERROR(INDEX(CampoChi,MATCH(0,COUNTIF($A$2:A92,CampoChi),0)),\"\")","v":""},""]
[{"$f":"IFERROR(INDEX(CampoChi,MATCH(0,COUNTIF($A$2:A93,CampoChi),0)),\"\")","v":""},""]
[{"$f":"IFERROR(INDEX(CampoChi,MATCH(0,COUNTIF($A$2:A94,CampoChi),0)),\"\")","v":""},""]
[{"$f":"IFERROR(INDEX(CampoChi,MATCH(0,COUNTIF($A$2:A95,CampoChi),0)),\"\")","v":""},""]
[{"$f":"IFERROR(INDEX(CampoChi,MATCH(0,COUNTIF($A$2:A96,CampoChi),0)),\"\")","v":""},""]
[{"$f":"IFERROR(INDEX(CampoChi,MATCH(0,COUNTIF($A$2:A97,CampoChi),0)),\"\")","v":""},""]
[{"$f":"IFERROR(INDEX(CampoChi,MATCH(0,COUNTIF($A$2:A98,CampoChi),0)),\"\")","v":""},""]
[{"$f":"IFERROR(INDEX(CampoChi,MATCH(0,COUNTIF($A$2:A99,CampoChi),0)),\"\")","v":""},""]
[{"$f":"IFERROR(INDEX(CampoChi,MATCH(0,COUNTIF($A$2:A100,CampoChi),0)),\"\")","v":""},""]
[{"$f":"IFERROR(INDEX(CampoChi,MATCH(0,COUNTIF($A$2:A101,CampoChi),0)),\"\")","v":""},""]
[{"$f":"IFERROR(INDEX(CampoChi,MATCH(0,COUNTIF($A$2:A102,CampoChi),0)),\"\")","v":""},""]
[{"$f":"IFERROR(INDEX(CampoChi,MATCH(0,COUNTIF($A$2:A103,CampoChi),0)),\"\")","v":""},""]
[{"$f":"IFERROR(INDEX(CampoChi,MATCH(0,COUNTIF($A$2:A104,CampoChi),0)),\"\")","v":""},""]
[{"$f":"IFERROR(INDEX(CampoChi,MATCH(0,COUNTIF($A$2:A105,CampoChi),0)),\"\")","v":""},""]
[{"$f":"IFERROR(INDEX(CampoChi,MATCH(0,COUNTIF($A$2:A106,CampoChi),0)),\"\")","v":""},""]
[{"$f":"IFERROR(INDEX(CampoChi,MATCH(0,COUNTIF($A$2:A107,CampoChi),0)),\"\")","v":""},""]
[{"$f":"IFERROR(INDEX(CampoChi,MATCH(0,COUNTIF($A$2:A108,CampoChi),0)),\"\")","v":""},""]
[{"$f":"IFERROR(INDEX(CampoChi,MATCH(0,COUNTIF($A$2:A109,CampoChi),0)),\"\")","v":""},""]
[{"$f":"IFERROR(INDEX(CampoChi,MATCH(0,COUNTIF($A$2:A110,CampoChi),0)),\"\")","v":""},""]
[{"$f":"IFERROR(INDEX(CampoChi,MATCH(0,COUNTIF($A$2:A111,CampoChi),0)),\"\")","v":""},""]
[{"$f":"IFERROR(INDEX(CampoChi,MATCH(0,COUNTIF($A$2:A112,CampoChi),0)),\"\")","v":""},""]
[{"$f":"IFERROR(INDEX(CampoChi,MATCH(0,COUNTIF($A$2:A113,CampoChi),0)),\"\")","v":""},""]
[{"$f":"IFERROR(INDEX(CampoChi,MATCH(0,COUNTIF($A$2:A114,CampoChi),0)),\"\")","v":""},""]
[{"$f":"IFERROR(INDEX(CampoChi,MATCH(0,COUNTIF($A$2:A115,CampoChi),0)),\"\")","v":""},""]
[{"$f":"IFERROR(INDEX(CampoChi,MATCH(0,COUNTIF($A$2:A116,CampoChi),0)),\"\")","v":""},""]
[{"$f":"IFERROR(INDEX(CampoChi,MATCH(0,COUNTIF($A$2:A117,CampoChi),0)),\"\")","v":""},""]
[{"$f":"IFERROR(INDEX(CampoChi,MATCH(0,COUNTIF($A$2:A118,CampoChi),0)),\"\")","v":""},""]
[{"$f":"IFERROR(INDEX(CampoChi,MATCH(0,COUNTIF($A$2:A119,CampoChi),0)),\"\")","v":""},""]
[{"$f":"IFERROR(INDEX(CampoChi,MATCH(0,COUNTIF($A$2:A120,CampoChi),0)),\"\")","v":""},""]
[{"$f":"IFERROR(INDEX(CampoChi,MATCH(0,COUNTIF($A$2:A121,CampoChi),0)),\"\")","v":""},""]
[{"$f":"IFERROR(INDEX(CampoChi,MATCH(0,COUNTIF($A$2:A122,CampoChi),0)),\"\")","v":""},""]
[{"$f":"IFERROR(INDEX(CampoChi,MATCH(0,COUNTIF($A$2:A123,CampoChi),0)),\"\")","v":""},""]
[{"$f":"IFERROR(INDEX(CampoChi,MATCH(0,COUNTIF($A$2:A124,CampoChi),0)),\"\")","v":""},""]
[{"$f":"IFERROR(INDEX(CampoChi,MATCH(0,COUNTIF($A$2:A125,CampoChi),0)),\"\")","v":""},""]
[{"$f":"IFERROR(INDEX(CampoChi,MATCH(0,COUNTIF($A$2:A126,CampoChi),0)),\"\")","v":""},""]
[{"$f":"IFERROR(INDEX(CampoChi,MATCH(0,COUNTIF($A$2:A127,CampoChi),0)),\"\")","v":""},""]
[{"$f":"IFERROR(INDEX(CampoChi,MATCH(0,COUNTIF($A$2:A128,CampoChi),0)),\"\")","v":""},""]
[{"$f":"IFERROR(INDEX(CampoChi,MATCH(0,COUNTIF($A$2:A129,CampoChi),0)),\"\")","v":""},""]
[{"$f":"IFERROR(INDEX(CampoChi,MATCH(0,COUNTIF($A$2:A130,CampoChi),0)),\"\")","v":""},""]
[{"$f":"IFERROR(INDEX(CampoChi,MATCH(0,COUNTIF($A$2:A131,CampoChi),0)),\"\")","v":""},{"$f":"IF(A132=\"\",\"\",ROW())","v":""}]